[Event "GER-ch Blitz 2019"]
[Site "Magdeburg"]
[Date "2019.05.25"]
[Round "23.4"]
[White "Hirneise, Jens"]
[Black "Hebbinghaus, Holger"]
[Result "1/2-1/2"]
[ECO "B03"]
[WhiteElo "2375"]
[BlackElo "2310"]
[Annotator "NA"]
[PlyCount "164"]
[EventDate "2019.05.25"]
[EventType "tourn"]
[EventCountry "GER"]
[Tiebreak "Number of wins+Number of black wins"]
[SourceTitle "playchess.com"]
[Source "ChessBase"]
[SourceQuality "1"]
[TimeControl "180+2"]

1. e4 {[%emt 0:00:00]} Nf6 {[%emt 0:00:00]} 2. e5 {[%emt 0:00:00]} Nd5 {
[%emt 0:00:00]} 3. d4 {[%emt 0:00:00]} d6 {[%emt 0:00:01]} 4. c4 {[%emt 0:00:
01]} Nb6 {[%emt 0:00:00]} 5. exd6 {[%emt 0:00:01]} cxd6 {[%emt 0:00:01]} 6. Nc3
{[%emt 0:00:02]} g6 {[%emt 0:00:01]} 7. Be3 {[%emt 0:00:01]} Bg7 {[%emt 0:00:
00]} 8. Rc1 {[%emt 0:00:01]} O-O {[%emt 0:00:02]} 9. h3 {[%emt 0:00:03]} d5 {
[%emt 0:00:23]} 10. c5 {[%emt 0:00:14]} Nc4 {[%emt 0:00:01]} 11. Bxc4 {[%emt 0:
00:02]} dxc4 {[%emt 0:00:01]} 12. Nf3 {[%emt 0:00:09]} Bf5 {[%emt 0:00:05]} 13.
O-O {[%emt 0:00:08]} Bd3 {[%emt 0:00:05]} 14. Re1 {[%emt 0:00:12]} Nc6 {
[%emt 0:00:04]} 15. b3 {[%emt 0:00:04]} Nxd4 {[%emt 0:00:26]} 16. bxc4 {
[%emt 0:00:10]} Nxf3+ {[%emt 0:00:25]} 17. Qxf3 {[%emt 0:00:02]} Bxc4 {[%emt 0:
00:22]} 18. Qxb7 {[%emt 0:00:01]} Qa5 {[%emt 0:00:38]} 19. Nd5 {[%emt 0:00:48]}
Bxd5 {[%emt 0:00:03]} 20. Qxd5 {[%emt 0:00:01]} e6 {[%emt 0:00:08]} 21. Qc4 {
[%emt 0:00:08]} Rfc8 {[%emt 0:00:11]} 22. c6 {[%emt 0:00:04]} Rc7 {[%emt 0:00:
12]} 23. a4 {[%emt 0:00:32]} Rac8 {[%emt 0:00:17]} 24. Qb5 {[%emt 0:00:31]} Bc3
{[%emt 0:00:01]} 25. Red1 {[%emt 0:00:12]} Rxc6 {[%emt 0:00:08]} 26. Qxa5 {
[%emt 0:00:04]} Bxa5 {[%emt 0:00:01]} 27. Rxc6 {[%emt 0:00:02]} Rxc6 {[%emt 0:
00:00]} 28. Bxa7 {[%emt 0:00:01]} Kg7 {[%emt 0:00:09]} 29. Rd7 {[%emt 0:00:13]}
e5 {[%emt 0:00:04]} 30. Rd5 {[%emt 0:00:02]} Bc3 {[%emt 0:00:03]} 31. a5 {
[%emt 0:00:02]} Ra6 {[%emt 0:00:05]} 32. Bb6 {[%emt 0:00:01]} Kf6 {[%emt 0:00:
01]} 33. Kf1 {[%emt 0:00:03]} Ke6 {[%emt 0:00:02]} 34. Rb5 {[%emt 0:00:01]} Kd6
{[%emt 0:00:03]} 35. Ke2 {[%emt 0:00:05]} Kc6 {[%emt 0:00:02]} 36. Rb3 {
[%emt 0:00:03]} Bxa5 {[%emt 0:00:01]} 37. Bxa5 {[%emt 0:00:01]} Rxa5 {[%emt 0:
00:01]} 38. h4 {[%emt 0:00:04]} Ra2+ {[%emt 0:00:03]} 39. Kf3 {[%emt 0:00:01]}
f5 {[%emt 0:00:01]} 40. Kg3 {[%emt 0:00:04]} Rd2 {[%emt 0:00:03]} 41. Rb8 {
[%emt 0:00:03]} Rd7 {[%emt 0:00:03]} 42. Ra8 {[%emt 0:00:02]} Kd6 {[%emt 0:00:
01]} 43. Ra5 {[%emt 0:00:03]} Ke6 {[%emt 0:00:01]} 44. Ra6+ {[%emt 0:00:00]}
Kf7 {[%emt 0:00:00]} 45. Ra5 {[%emt 0:00:02]} Ke6 {[%emt 0:00:02]} 46. Ra6+ {
[%emt 0:00:01]} Rd6 {[%emt 0:00:01]} 47. Ra7 {[%emt 0:00:01]} h5 {[%emt 0:00:
01]} 48. Rg7 {[%emt 0:00:01]} Kf6 {[%emt 0:00:01]} 49. Ra7 {[%emt 0:00:01]}
Rd3+ {[%emt 0:00:01]} 50. Kh2 {[%emt 0:00:02]} e4 {[%emt 0:00:02]} 51. g3 {
[%emt 0:00:03]} Rd2 {[%emt 0:00:01]} 52. Kg1 {[%emt 0:00:02]} Rd1+ {[%emt 0:00:
03]} 53. Kg2 {[%emt 0:00:01]} Rb1 {[%emt 0:00:03]} 54. Ra6+ {[%emt 0:00:01]}
Kg7 {[%emt 0:00:02]} 55. Ra7+ {[%emt 0:00:01]} Kh6 {[%emt 0:00:01]} 56. Ra6 {
[%emt 0:00:01]} Rb2 {[%emt 0:00:03]} 57. Kg1 {[%emt 0:00:01]} Rc2 {[%emt 0:00:
02]} 58. Rb6 {[%emt 0:00:02]} Rc3 {[%emt 0:00:02]} 59. Kg2 {[%emt 0:00:02]} e3
{[%emt 0:00:02]} 60. fxe3 {[%emt 0:00:02]} Rxe3 {[%emt 0:00:01]} 61. Ra6 {
[%emt 0:00:02]} Re4 {[%emt 0:00:02]} 62. Rb6 {[%emt 0:00:02]} Rg4 {[%emt 0:00:
00]} 63. Kh3 {[%emt 0:00:04]} Kg7 {[%emt 0:00:02]} 64. Ra6 {[%emt 0:00:03]} Kf7
{[%emt 0:00:03]} 65. Rb6 {[%emt 0:00:01]} Re4 {[%emt 0:00:02]} 66. Kg2 {
[%emt 0:00:04]} Re6 {[%emt 0:00:01]} 67. Rb5 {[%emt 0:00:05]} Kf6 {[%emt 0:00:
01]} 68. Kf3 {[%emt 0:00:01]} Ra6 {[%emt 0:00:01]} 69. Kf4 {[%emt 0:00:06]}
Ra4+ {[%emt 0:00:03]} 70. Kf3 {[%emt 0:00:01]} Rg4 {[%emt 0:00:01]} 71. Rb6+ {
[%emt 0:00:02]} Ke5 {[%emt 0:00:03]} 72. Rb5+ {[%emt 0:00:01]} Kf6 {[%emt 0:00:
05]} 73. Rb6+ {[%emt 0:00:01]} Kg7 {[%emt 0:00:02]} 74. Rb7+ {[%emt 0:00:01]}
Kh6 {[%emt 0:00:01]} 75. Rb6 {[%emt 0:00:00]} Kg7 {[%emt 0:00:02]} 76. Rb7+ {
[%emt 0:00:01]} Kf6 {[%emt 0:00:00]} 77. Rb6+ {[%emt 0:00:01]} Kf7 {[%emt 0:00:
02]} 78. Rb7+ {[%emt 0:00:01]} Ke6 {[%emt 0:00:02]} 79. Rb6+ {[%emt 0:00:01]}
Ke5 {[%emt 0:00:01]} 80. Rb5+ {[%emt 0:00:02]} Kd4 {[%emt 0:00:02]} 81. Rb6 {
[%emt 0:00:02]} Kc5 {[%emt 0:00:03]} 82. Ra6 {[%emt 0:00:01]} Kb5 {[%emt 0:00:
03] Ke4} 1/2-1/2

[Event "GER-ch Blitz 2019"]
[Site "Magdeburg"]
[Date "2019.05.25"]
[Round "23.5"]
[White "Barzen, Pascal"]
[Black "Frischmann, Rick"]
[Result "1-0"]
[ECO "B25"]
[WhiteElo "2292"]
[BlackElo "2320"]
[Annotator "NA"]
[PlyCount "81"]
[EventDate "2019.05.25"]
[EventType "tourn"]
[EventCountry "GER"]
[Tiebreak "Number of wins+Number of black wins"]
[SourceTitle "playchess.com"]
[Source "ChessBase"]
[SourceQuality "1"]
[TimeControl "180+2"]

1. e4 {[%emt 0:00:00]} c5 {[%emt 0:00:00]} 2. Nc3 {[%emt 0:00:00]} Nc6 {
[%emt 0:00:00]} 3. g3 {[%emt 0:00:01]} g6 {[%emt 0:00:00]} 4. Bg2 {[%emt 0:00:
01]} Bg7 {[%emt 0:00:01]} 5. d3 {[%emt 0:00:00]} d6 {[%emt 0:00:03]} 6. f4 {
[%emt 0:00:02]} Nf6 {[%emt 0:00:00]} 7. Nf3 {[%emt 0:00:01]} Rb8 {[%emt 0:00:
01]} 8. O-O {[%emt 0:00:01]} O-O {[%emt 0:00:01]} 9. h3 {[%emt 0:00:01]} b5 {
[%emt 0:00:01]} 10. g4 {[%emt 0:00:00]} b4 {[%emt 0:00:00]} 11. Ne2 {[%emt 0:
00:01]} a5 {[%emt 0:00:08]} 12. Ng3 {[%emt 0:00:02]} a4 {[%emt 0:00:01]} 13.
Rb1 {[%emt 0:00:01]} b3 {[%emt 0:00:04]} 14. axb3 {[%emt 0:00:03]} axb3 {
[%emt 0:00:01]} 15. c3 {[%emt 0:00:02]} Ba6 {[%emt 0:00:03]} 16. f5 {[%emt 0:
00:20]} Ne5 {[%emt 0:00:04]} 17. Nxe5 {[%emt 0:00:09]} dxe5 {[%emt 0:00:00]}
18. g5 {[%emt 0:00:13]} Ne8 {[%emt 0:00:12]} 19. Rf3 {[%emt 0:00:05]} Qd6 {
[%emt 0:00:02]} 20. Bf1 {[%emt 0:00:16]} c4 {[%emt 0:00:21]} 21. Ra1 {[%emt 0:
00:16]} Nc7 {[%emt 0:00:06]} 22. d4 {[%emt 0:00:27]} exd4 {[%emt 0:00:58]} 23.
Bf4 {[%emt 0:00:01]} Be5 {[%emt 0:00:00]} 24. Bxe5 {[%emt 0:00:04]} Qxe5 {
[%emt 0:00:00]} 25. cxd4 {[%emt 0:00:08]} Qd6 {[%emt 0:00:07]} 26. e5 {[%emt 0:
00:21]} Qb6 {[%emt 0:00:04]} 27. Qd2 {[%emt 0:00:43]} Rfd8 {[%emt 0:00:03]} 28.
Rf4 {[%emt 0:00:03]} Nb5 {[%emt 0:00:22]} 29. fxg6 {[%emt 0:00:16]} hxg6 {
[%emt 0:00:09]} 30. Bxc4 {[%emt 0:00:09]} Nxd4 {[%emt 0:00:26]} 31. Bxf7+ {
[%emt 0:00:06]} Kg7 {[%emt 0:00:03]} 32. Qf2 {[%emt 0:00:01]} Nc2 {[%emt 0:00:
26]} 33. Rxa6 {[%emt 0:00:07]} Rd1+ {[%emt 0:00:09]} 34. Kh2 {[%emt 0:00:01]}
Qxa6 35. Bc4 {[%emt 0:00:01]} Kh8 {[%emt 0:00:10]} 36. Bxa6 {[%emt 0:00:01]}
Rbd8 {[%emt 0:00:02]} 37. Rf8+ {[%emt 0:00:01]} Rxf8 38. Qxf8+ Kh7 39. Qf7+ {
[%emt 0:00:01]} Kh8 {[%emt 0:00:01]} 40. Bc4 {[%emt 0:00:01]} Rd2+ {[%emt 0:00:
01]} 41. Ne2 {[%emt 0:00:01]} 1-0

[Event "GER-ch Blitz 2019"]
[Site "Magdeburg"]
[Date "2019.05.25"]
[Round "23.6"]
[White "Zuyev, Igor"]
[Black "Heistermann, Till"]
[Result "1-0"]
[ECO "B00"]
[WhiteElo "2447"]
[BlackElo "2181"]
[Annotator "NA"]
[PlyCount "49"]
[EventDate "2019.05.25"]
[EventType "tourn"]
[EventCountry "GER"]
[Tiebreak "Number of wins+Number of black wins"]
[SourceTitle "playchess.com"]
[Source "ChessBase"]
[SourceQuality "1"]
[TimeControl "180+2"]

1. e4 {[%emt 0:00:00]} d6 {[%emt 0:00:00]} 2. d4 {[%emt 0:00:00]} e5 {[%emt 0:
00:00]} 3. dxe5 dxe5 4. Qxd8+ {[%emt 0:00:13]} Kxd8 {[%emt 0:00:01]} 5. Nc3 {
[%emt 0:00:02]} c6 {[%emt 0:00:00]} 6. f4 {[%emt 0:00:12]} Nd7 {[%emt 0:00:01]}
7. Bc4 {[%emt 0:00:08]} f6 {[%emt 0:00:02]} 8. Be3 {[%emt 0:00:05]} Bd6 {
[%emt 0:00:03]} 9. f5 {[%emt 0:00:06]} Bc5 {[%emt 0:00:02]} 10. Bxc5 {[%emt 0:
00:07]} Nxc5 {[%emt 0:00:01]} 11. b4 {[%emt 0:00:02]} Nd7 {[%emt 0:00:02]} 12.
O-O-O {[%emt 0:00:08]} Kc7 {[%emt 0:00:00]} 13. a4 {[%emt 0:00:05]} a5 {
[%emt 0:00:01]} 14. b5 {[%emt 0:00:05]} Ne7 {[%emt 0:00:04]} 15. Nf3 {[%emt 0:
00:03]} Nc5 {[%emt 0:00:06]} 16. g4 {[%emt 0:00:06]} h6 {[%emt 0:00:02]} 17. h4
{[%emt 0:00:04]} Bd7 {[%emt 0:00:02]} 18. Be2 {[%emt 0:00:09]} Nc8 {[%emt 0:00:
21]} 19. Nd2 {[%emt 0:00:05]} Nb6 {[%emt 0:00:08]} 20. Nc4 {[%emt 0:00:07]}
Nxc4 {[%emt 0:00:24]} 21. Bxc4 {[%emt 0:00:03]} Rad8 {[%emt 0:00:05]} 22. Rd2 {
[%emt 0:00:06]} Bc8 {[%emt 0:00:05]} 23. Rhd1 {[%emt 0:00:06]} Rxd2 {[%emt 0:
00:03]} 24. Rxd2 {[%emt 0:00:01]} Rd8 {[%emt 0:00:01]} 25. b6+ {[%emt 0:00:06]}
1-0

[Event "GER-ch Blitz 2019"]
[Site "Magdeburg"]
[Date "2019.05.25"]
[Round "23.7"]
[White "Braeuning, Rudolf Wilhelm"]
[Black "Stein, Robert"]
[Result "0-1"]
[ECO "C51"]
[WhiteElo "2285"]
[BlackElo "2318"]
[Annotator "NA"]
[PlyCount "130"]
[EventDate "2019.05.25"]
[EventType "tourn"]
[EventCountry "GER"]
[Tiebreak "Number of wins+Number of black wins"]
[SourceTitle "playchess.com"]
[Source "ChessBase"]
[SourceQuality "1"]
[TimeControl "180+2"]

1. e4 {[%emt 0:00:00]} e5 {[%emt 0:00:00]} 2. Nf3 {[%emt 0:00:00]} Nc6 {
[%emt 0:00:00]} 3. Bc4 {[%emt 0:00:01]} Bc5 {[%emt 0:00:02]} 4. b4 {[%emt 0:00:
01]} Bxb4 5. c3 Be7 {[%emt 0:00:03]} 6. d4 {[%emt 0:00:04]} Na5 {[%emt 0:00:39]
} 7. Be2 {[%emt 0:00:03]} d6 {[%emt 0:00:02]} 8. dxe5 {[%emt 0:00:06]} dxe5 {
[%emt 0:00:00]} 9. Qxd8+ {[%emt 0:00:02]} Bxd8 {[%emt 0:00:02]} 10. Nxe5 {
[%emt 0:00:01]} Nf6 {[%emt 0:00:01]} 11. f3 {[%emt 0:00:06]} Nd7 {[%emt 0:00:
04]} 12. Bf4 {[%emt 0:00:26]} Nxe5 {[%emt 0:00:16]} 13. Bxe5 {[%emt 0:00:01]}
O-O {[%emt 0:00:09]} 14. Nd2 {[%emt 0:00:17]} Re8 {[%emt 0:00:01]} 15. Bg3 {
[%emt 0:00:06]} Be6 {[%emt 0:00:12]} 16. O-O {[%emt 0:00:43]} c6 {[%emt 0:00:
19]} 17. Rfb1 {[%emt 0:00:17]} Bf6 {[%emt 0:00:21]} 18. e5 {[%emt 0:00:04]} Be7
{[%emt 0:00:01]} 19. Ne4 {[%emt 0:00:04]} Red8 {[%emt 0:00:22]} 20. Nd6 {
[%emt 0:00:08]} Rd7 {[%emt 0:00:22]} 21. Rd1 {[%emt 0:00:16]} Rad8 {[%emt 0:00:
03]} 22. Rd4 {[%emt 0:00:08]} b6 {[%emt 0:00:04]} 23. Rad1 {[%emt 0:00:09]}
Bxa2 {[%emt 0:00:12]} 24. c4 {[%emt 0:00:05]} c5 {[%emt 0:00:05]} 25. Re4 {
[%emt 0:00:22]} Bb3 {[%emt 0:00:02]} 26. Rc1 {[%emt 0:00:12]} Nb7 {[%emt 0:00:
10]} 27. Nf5 {[%emt 0:00:06]} Bf8 {[%emt 0:00:01]} 28. Ne3 {[%emt 0:00:05]} Na5
29. Nd5 {[%emt 0:00:02]} Nc6 {[%emt 0:00:14]} 30. Re1 {[%emt 0:00:01]} Nd4 {
[%emt 0:00:01]} 31. Bf2 {[%emt 0:00:01]} Nxe2+ {[%emt 0:00:01]} 32. R1xe2 {
[%emt 0:00:00]} Ba4 {[%emt 0:00:00]} 33. Nf4 {[%emt 0:00:03]} Bc6 {[%emt 0:00:
02]} 34. R4e3 {[%emt 0:00:01]} Rd1+ {[%emt 0:00:04]} 35. Re1 {[%emt 0:00:01]}
Rxe1+ {[%emt 0:00:01]} 36. Rxe1 {[%emt 0:00:01]} Be7 {[%emt 0:00:06]} 37. e6 {
[%emt 0:00:03]} f6 {[%emt 0:00:03]} 38. Bg3 {[%emt 0:00:02]} g5 {[%emt 0:00:01]
} 39. Nh5 Be8 {[%emt 0:00:01]} 40. Nf4 {[%emt 0:00:07]} gxf4 {[%emt 0:00:01]}
41. Bxf4 {[%emt 0:00:01]} Bc6 {[%emt 0:00:02]} 42. Bc7 {[%emt 0:00:02]} Rc8 {
[%emt 0:00:00]} 43. Bf4 {[%emt 0:00:02]} a6 {[%emt 0:00:04]} 44. Ra1 {[%emt 0:
00:02]} a5 {[%emt 0:00:01]} 45. Rb1 {[%emt 0:00:01]} Bd8 {[%emt 0:00:04]} 46.
Bd6 {[%emt 0:00:00]} Bc7 {[%emt 0:00:02]} 47. Bxc7 {[%emt 0:00:01]} Rxc7 {
[%emt 0:00:01]} 48. Rxb6 {[%emt 0:00:01]} a4 {[%emt 0:00:01]} 49. Ra6 Kf8 50.
Kf2 {[%emt 0:00:02]} Ke7 {[%emt 0:00:00]} 51. Ke3 {[%emt 0:00:01]} Kxe6 52. Kf4
Kd6 {[%emt 0:00:03]} 53. Kf5 {[%emt 0:00:02]} Rg7 {[%emt 0:00:09]} 54. g4 {
[%emt 0:00:03]} Rg8 {[%emt 0:00:04]} 55. f4 {[%emt 0:00:04]} Rf8 {[%emt 0:00:
01]} 56. h4 {[%emt 0:00:02]} Kc7 {[%emt 0:00:02]} 57. Ke6 {[%emt 0:00:10]} Kb7
{[%emt 0:00:02]} 58. Ra5 {[%emt 0:00:02]} Kb6 {[%emt 0:00:01]} 59. Ke7 {
[%emt 0:00:01]} Kxa5 {[%emt 0:00:01]} 60. Kxf8 {[%emt 0:00:01]} a3 {[%emt 0:00:
01]} 61. g5 {[%emt 0:00:01]} fxg5 {[%emt 0:00:01]} 62. fxg5 {[%emt 0:00:02]} a2
{[%emt 0:00:01]} 63. Kg7 {[%emt 0:00:01]} a1=Q+ {[%emt 0:00:02]} 64. Kxh7 {
[%emt 0:00:01]} Be4+ {[%emt 0:00:02]} 65. g6 {[%emt 0:00:01]} Qh1 {[%emt 0:00:
05]} 0-1

[Event "GER-ch Blitz 2019"]
[Site "Magdeburg"]
[Date "2019.05.25"]
[Round "23.8"]
[White "Schmaltz, Roland"]
[Black "Voege, Tobias"]
[Result "1-0"]
[ECO "B32"]
[WhiteElo "2461"]
[BlackElo "2294"]
[Annotator "ChessBase"]
[PlyCount "71"]
[EventDate "2019.05.25"]
[EventType "tourn"]
[EventCountry "GER"]
[Tiebreak "Number of wins+Number of black wins"]
[SourceTitle "playchess.com"]
[Source "ChessBase"]
[SourceQuality "1"]
[TimeControl "180+2"]

1. e4 {[%emt 0:00:00]} c5 {[%emt 0:00:00]} 2. Nf3 {[%emt 0:00:00]} Nc6 {
[%emt 0:00:00]} 3. d4 {[%emt 0:00:00]} cxd4 4. Nxd4 {[%emt 0:00:00]} g6 {
[%emt 0:00:01]} 5. Be2 {[%emt 0:00:02]} Bg7 {[%emt 0:00:02]} 6. Nb3 {[%emt 0:
00:01]} Nf6 {[%emt 0:00:01]} 7. Nc3 {[%emt 0:00:00]} O-O {[%emt 0:00:05]} 8.
O-O {[%emt 0:00:01]} a5 {[%emt 0:00:00]} 9. a4 {[%emt 0:00:01]} d6 {[%emt 0:00:
01]} 10. Re1 {[%emt 0:00:02]} Be6 {[%emt 0:00:01]} 11. Bf1 {[%emt 0:00:03]} Nd7
{[%emt 0:00:03]} 12. Nd5 {[%emt 0:00:02]} Nc5 {[%emt 0:00:08]} 13. Nxc5 {
[%emt 0:00:08]} dxc5 {[%emt 0:00:01]} 14. c3 {[%emt 0:00:01]} Rc8 {[%emt 0:00:
17]} 15. Bg5 {[%emt 0:00:03]} Re8 {[%emt 0:00:16]} 16. Qb3 {[%emt 0:00:06]} b6
{[%emt 0:00:53]} 17. Rad1 {[%emt 0:00:05]} Rb8 {[%emt 0:00:21]} 18. Bb5 {
[%emt 0:00:06]} Qc8 {[%emt 0:00:09]} 19. Qc2 {[%emt 0:00:02]} Qb7 {[%emt 0:00:
39]} 20. Bxc6 {[%emt 0:00:04]} Qxc6 {[%emt 0:00:01]} 21. Nxe7+ {[%emt 0:00:04]}
Rxe7 {[%emt 0:00:01]} 22. Bxe7 {[%emt 0:00:01]} b5 {[%emt 0:00:08]} 23. axb5 {
[%emt 0:00:10]} Qxb5 {[%emt 0:00:01]} 24. Rd8+ {[%emt 0:00:05]} Rxd8 {[%emt 0:
00:01]} 25. Bxd8 {[%emt 0:00:01]} h5 {[%emt 0:00:02]} 26. Bg5 {[%emt 0:00:08]}
a4 {[%emt 0:00:05]} 27. Qd2 {[%emt 0:00:04]} Kh7 {[%emt 0:00:07]} 28. h3 {
[%emt 0:00:01]} Qb3 {[%emt 0:00:01]} 29. e5 {[%emt 0:00:07]} a3 {[%emt 0:00:05]
} 30. bxa3 {[%emt 0:00:01]} Qxa3 {[%emt 0:00:00]} 31. Bf6 {[%emt 0:00:01]} Qa6
{[%emt 0:00:21]} 32. Rd1 {[%emt 0:00:07]} Bf5 {[%emt 0:00:06]} 33. Bxg7 {
[%emt 0:00:05]} Kxg7 {[%emt 0:00:01]} 34. Qd6 {[%emt 0:00:02]} Qa7 {[%emt 0:00:
06]} 35. Qf6+ {[%emt 0:00:02]} Kh7 {[%emt 0:00:01]} 36. Rd8 {[%emt 0:00:02]}
1-0

[Event "GER-ch Blitz 2019"]
[Site "Magdeburg"]
[Date "2019.05.25"]
[Round "23.9"]
[White "Feuerstack, Aljoscha"]
[Black "Kopylov, Daniel"]
[Result "0-1"]
[ECO "B22"]
[WhiteElo "2441"]
[BlackElo "2263"]
[Annotator "NA"]
[PlyCount "79"]
[EventDate "2019.05.25"]
[EventType "tourn"]
[EventCountry "GER"]
[Tiebreak "Number of wins+Number of black wins"]
[SourceTitle "playchess.com"]
[Source "ChessBase"]
[SourceQuality "1"]
[TimeControl "180+2"]

1. e4 {[%emt 0:00:00]} c5 {[%emt 0:00:00]} 2. c3 {[%emt 0:00:00]} d5 {[%emt 0:
00:00]} 3. exd5 {[%emt 0:00:01]} Qxd5 {[%emt 0:00:01]} 4. d4 {[%emt 0:00:01]}
e6 {[%emt 0:00:01]} 5. Nf3 {[%emt 0:00:01]} Nf6 {[%emt 0:00:02]} 6. Na3 {
[%emt 0:00:01]} cxd4 {[%emt 0:00:03]} 7. Nb5 {[%emt 0:00:01]} Qd8 {[%emt 0:00:
01]} 8. Qxd4 {[%emt 0:00:01]} Nc6 {[%emt 0:00:07]} 9. Qxd8+ {[%emt 0:00:08]}
Kxd8 {[%emt 0:00:01]} 10. Ng5 {[%emt 0:00:22]} Ke7 {[%emt 0:00:35]} 11. Bf4 {
[%emt 0:01:05]} e5 {[%emt 0:01:16]} 12. Be3 {[%emt 0:00:01]} Nd5 {[%emt 0:00:
02]} 13. Bc5+ {[%emt 0:00:10]} Ke8 {[%emt 0:00:04]} 14. Bxf8 {[%emt 0:00:36]}
Kxf8 {[%emt 0:00:02]} 15. O-O-O {[%emt 0:00:02]} Be6 {[%emt 0:00:42]} 16. Bc4 {
[%emt 0:00:17]} Nf4 {[%emt 0:00:16]} 17. Bxe6 {[%emt 0:00:05]} Nxe6 {[%emt 0:
00:02]} 18. Nxe6+ {[%emt 0:00:01]} fxe6 {[%emt 0:00:01]} 19. Rd7 {[%emt 0:00:
01]} Ne7 {[%emt 0:00:15]} 20. Rhd1 {[%emt 0:00:11]} Kf7 {[%emt 0:00:04]} 21.
Nd6+ {[%emt 0:00:07]} Kf6 {[%emt 0:00:01]} 22. Ne4+ {[%emt 0:00:02]} Kf7 {
[%emt 0:00:01]} 23. R1d6 {[%emt 0:00:04]} h6 {[%emt 0:00:03]} 24. Nc5 {[%emt 0:
00:03]} Rac8 {[%emt 0:00:04]} 25. Rxe6 {[%emt 0:00:03]} Rxc5 {[%emt 0:00:01]}
26. Rdxe7+ {[%emt 0:00:03]} Kg8 {[%emt 0:00:02]} 27. Rxb7 {[%emt 0:00:03]} e4 {
[%emt 0:00:03]} 28. Rxe4 {[%emt 0:00:03]} Rg5 {[%emt 0:00:01]} 29. g3 Kh7 30.
Rxa7 {[%emt 0:00:03]} Rf8 {[%emt 0:00:01]} 31. f4 {[%emt 0:00:02]} Rd5 {
[%emt 0:00:00]} 32. Ree7 {[%emt 0:00:03]} Rfd8 {[%emt 0:00:03]} 33. Rxg7+ {
[%emt 0:00:04]} Kh8 {[%emt 0:00:01]} 34. Rh7+ {[%emt 0:00:07]} Kg8 {[%emt 0:00:
00]} 35. Rxh6 {[%emt 0:00:05]} Rd1+ {[%emt 0:00:01]} 36. Kc2 {[%emt 0:00:00]}
R1d2+ {[%emt 0:00:01]} 37. Kb3 {[%emt 0:00:01]} Rb8+ {[%emt 0:00:01]} 38. Kc4 {
[%emt 0:00:02]} Rc8+ {[%emt 0:00:02]} 39. Kb3 {[%emt 0:00:08]} Rb8+ {[%emt 0:
00:00]} 40. Kc4 0-1

[Event "GER-ch Blitz 2019"]
[Site "Magdeburg"]
[Date "2019.05.25"]
[Round "23.10"]
[White "Zelbel, Patrick"]
[Black "Wichmann, Cliff"]
[Result "1-0"]
[ECO "C06"]
[WhiteElo "2439"]
[BlackElo "2280"]
[Annotator "NA"]
[PlyCount "81"]
[EventDate "2019.05.25"]
[EventType "tourn"]
[EventCountry "GER"]
[Tiebreak "Number of wins+Number of black wins"]
[SourceTitle "playchess.com"]
[Source "ChessBase"]
[SourceQuality "1"]
[TimeControl "180+2"]

1. e4 {[%emt 0:00:00]} e6 {[%emt 0:00:00]} 2. d4 {[%emt 0:00:00]} d5 {[%emt 0:
00:00]} 3. Nd2 {[%emt 0:00:00]} Nf6 {[%emt 0:00:01]} 4. e5 {[%emt 0:00:00]}
Nfd7 {[%emt 0:00:01]} 5. Bd3 {[%emt 0:00:01]} c5 {[%emt 0:00:00]} 6. c3 {
[%emt 0:00:01]} Nc6 {[%emt 0:00:01]} 7. Ne2 {[%emt 0:00:01]} cxd4 {[%emt 0:00:
01]} 8. cxd4 {[%emt 0:00:00]} f6 {[%emt 0:00:01]} 9. exf6 {[%emt 0:00:01]} Nxf6
{[%emt 0:00:01]} 10. Nf3 {[%emt 0:00:01]} Bd6 {[%emt 0:00:01]} 11. O-O {
[%emt 0:00:03]} Qc7 {[%emt 0:00:01]} 12. h3 {[%emt 0:00:02]} O-O {[%emt 0:00:
02]} 13. Be3 {[%emt 0:00:01]} Bd7 {[%emt 0:00:06]} 14. Re1 {[%emt 0:00:11]} Be8
{[%emt 0:00:01]} 15. Ng5 {[%emt 0:00:09]} Qe7 {[%emt 0:00:01]} 16. Nf4 {
[%emt 0:00:25]} Bxf4 {[%emt 0:00:04]} 17. Bxf4 {[%emt 0:00:01]} Ne4 {[%emt 0:
00:01]} 18. Bxe4 {[%emt 0:01:01]} Rxf4 {[%emt 0:00:02]} 19. Bxh7+ {[%emt 0:00:
05]} Kh8 {[%emt 0:00:01]} 20. Nxe6 {[%emt 0:00:09]} Re4 {[%emt 0:00:01]} 21.
Bxe4 {[%emt 0:00:08]} Qxe6 {[%emt 0:00:16]} 22. Bd3 {[%emt 0:00:07]} Qh6 {
[%emt 0:00:05]} 23. Qg4 {[%emt 0:00:07]} Bh5 {[%emt 0:00:09]} 24. Qh4 {[%emt 0:
00:04]} Bf7 {[%emt 0:00:11]} 25. Qxh6+ {[%emt 0:00:06]} gxh6 {[%emt 0:00:01]}
26. Rad1 {[%emt 0:00:01]} Kg7 {[%emt 0:00:07]} 27. Bb5 {[%emt 0:00:04]} Nd8 {
[%emt 0:00:07]} 28. Re7 {[%emt 0:00:08]} Kf6 {[%emt 0:00:04]} 29. Re5 {[%emt 0:
00:13]} a6 {[%emt 0:00:13]} 30. Bd7 {[%emt 0:00:02]} b5 {[%emt 0:00:08]} 31.
Rd3 {[%emt 0:00:01]} Ra7 {[%emt 0:00:03]} 32. Rf3+ {[%emt 0:00:05]} Kg6 {
[%emt 0:00:04]} 33. Be8 {[%emt 0:00:02]} Bxe8 {[%emt 0:00:23]} 34. Rxe8 {
[%emt 0:00:01]} Rd7 {[%emt 0:00:01]} 35. Rff8 {[%emt 0:00:22]} Nb7 {[%emt 0:00:
01]} 36. Rg8+ {[%emt 0:00:07]} Kf7 {[%emt 0:00:07]} 37. Rgf8+ {[%emt 0:00:02]}
Kg6 {[%emt 0:00:02]} 38. Re6+ {[%emt 0:00:02]} Kg7 {[%emt 0:00:02]} 39. Rff6 {
[%emt 0:00:02]} h5 {[%emt 0:00:22]} 40. Rxa6 {[%emt 0:00:01]} Nd8 {[%emt 0:00:
08]} 41. Rfd6 {[%emt 0:00:01]} 1-0